bitfinex-derivatives/quotes_BTCF0:USTF0_20241214
["timestamp","ask_amount","ask_price","bid_price","bid_amount"]
[1734186323514,0.67874559,101390.0,101380.0,0.23477273]
[1734186326507,0.6173612,101390.0,101380.0,0.23477273]
[1734186327018,0.67874559,101390.0,101380.0,0.23477273]
[1734186328018,0.6173612,101390.0,101380.0,0.23477273]
[1734186328221,0.67874559,101390.0,101380.0,0.23477273]
[1734186343031,0.6173612,101390.0,101380.0,0.23477273]
[1734186343328,0.67874559,101390.0,101380.0,0.23477273]
[1734186351923,0.6173612,101390.0,101380.0,0.23477273]
[1734186352323,0.67874559,101390.0,101380.0,0.23477273]
[1734186358143,0.74012998,101390.0,101380.0,0.23477273]
[1734186358433,0.74012998,101390.0,101380.0,0.41189476]
[1734186362636,0.67874559,101390.0,101380.0,0.41189476]
[1734186363340,0.74012998,101390.0,101380.0,0.41189476]
[1734186366529,0.74012998,101390.0,101380.0,0.17721156]
[1734186366743,0.62496517,101390.0,101380.0,0.17721156]
[1734186366937,0.049316,101380.0,101370.0,0.2346832]
[1734186367241,0.8809541,101380.0,101360.0,2.0280372]
[1734186367437,0.68078209,101370.0,101360.0,2.25491592]
[1734186367841,0.68087162,101370.0,101360.0,0.75491592]
[1734186368360,0.7422494,101370.0,101360.0,0.51669352]
[1734186368639,0.049331,101350.0,101340.0,0.2346832]
[1734186368946,0.98028771,101350.0,101340.0,0.2346832]
[1734186369239,0.049336,101340.0,101330.0,1.83216314]
[1734186369429,0.049336,101340.0,101330.0,1.59747994]
[1734186369430,0.65104316,101340.0,101330.0,1.59747994]
[1734186370239,0.73956838,101340.0,101330.0,1.6406608]
[1734186370444,0.73956838,101340.0,101330.0,1.59747994]
[1734186370632,0.6167996,101340.0,101330.0,1.88150414]
[1734186370835,0.56004561,101340.0,101330.0,1.88150414]
[1734186371246,0.62143,101340.0,101330.0,1.64682094]
[1734186372045,0.62143,101340.0,101330.0,1.65637288]
[1734186373629,0.62143,101340.0,101330.0,0.07443188]
[1734186375644,0.53290478,101340.0,101330.0,0.07443188]
[1734186379843,0.53290478,101340.0,101330.0,0.01005194]
[1734186380147,0.56560478,101340.0,101330.0,0.01005194]
[1734186380353,0.59690478,101340.0,101330.0,0.01005194]
[1734186381444,0.59690478,101340.0,101330.0,0.0005]
[1734186381641,0.6583787,101340.0,101330.0,0.0005]
[1734186381846,0.68551953,101340.0,101330.0,0.0005]
[1734186384246,0.74690392,101340.0,101330.0,0.0005]
[1734186388444,0.8650423,101340.0,101330.0,0.0005]
[1734186390765,0.80365791,101340.0,101330.0,0.0005]
[1734186391052,0.80365791,101340.0,101320.0,0.009487]
[1734186391053,0.049341,101330.0,101320.0,0.009487]
[1734186391246,0.47152539,101330.0,101310.0,2.02489489]
[1734186391446,0.06138439,101320.0,101310.0,2.03442066]
[1734186392349,0.11073039,101320.0,101310.0,2.26910386]
[1734186394247,0.11073039,101320.0,101310.0,2.31228341]
[1734186394453,0.17211478,101320.0,101310.0,2.31228341]
[1734186394847,0.17211478,101320.0,101310.0,2.31278341]
[1734186395853,0.17211478,101320.0,101310.0,2.31228341]
[1734186396944,0.17211478,101320.0,101310.0,2.31278341]
[1734186397347,0.26064,101320.0,101310.0,2.30483095]
[1734186397852,0.26064,101320.0,101310.0,2.30433095]
[1734186398360,0.37877838,101320.0,101310.0,2.59969926]
[1734186399056,0.37877838,101320.0,101310.0,2.60019926]
[1734186399356,0.37877838,101320.0,101310.0,2.95070958]
[1734186399862,0.37877838,101320.0,101310.0,2.95020958]
[1734186400153,0.37877838,101320.0,101310.0,2.57975348]
[1734186400551,0.29025316,101320.0,101310.0,2.21895348]
[1734186401059,0.29025316,101320.0,101310.0,2.21945348]
[1734186402547,0.3789839,101320.0,101310.0,2.21945348]
[1734186402844,0.3789839,101320.0,101310.0,2.21895348]
[1734186403258,0.3789839,101320.0,101310.0,2.23870437]
[1734186404159,0.3789839,101320.0,101310.0,2.21895348]
[1734186404360,0.29025316,101320.0,101310.0,2.21895348]
[1734186404955,0.37898801,101320.0,101310.0,2.21895348]
[1734186405450,0.20687323,101320.0,101310.0,2.57975348]
[1734186405762,0.08873352,101320.0,101310.0,2.69627988]
[1734186407559,0.08873352,101320.0,101310.0,2.63489549]
[1734186407858,0.15011791,101320.0,101310.0,2.69627988]
[1734186409658,0.15011791,101320.0,101310.0,2.63489549]
[1734186409862,0.15011791,101320.0,101310.0,2.69627988]
[1734186410960,0.15011791,101320.0,101310.0,2.63489549]
[1734186411550,0.15011791,101320.0,101310.0,2.69627988]
[1734186411953,0.62175847,101320.0,101310.0,0.63621594]
[1734186412159,0.65114269,101320.0,101310.0,0.6243864]
[1734186417365,0.65114269,101320.0,101310.0,0.62439827]
[1734186418056,0.65114269,101320.0,101310.0,2.12439827]
[1734186418563,0.37906684,101320.0,101310.0,2.12439827]
[1734186420269,0.37906684,101320.0,101310.0,2.47490859]
[1734186420854,0.37906684,101320.0,101310.0,2.47510969]
[1734186421969,0.37921433,101320.0,101310.0,2.4790648]
[1734186423364,0.25644555,101320.0,101310.0,2.4790648]
[1734186423669,0.31782994,101320.0,101310.0,2.4790648]
[1734186424863,0.31782994,101320.0,101310.0,2.47867822]
[1734186429873,0.20709955,101320.0,101310.0,2.90086261]
[1734186430093,0.08880811,101320.0,101310.0,2.60543886]
[1734186430267,0.1501925,101320.0,101310.0,2.60543886]
[1734186430468,0.1501925,101320.0,101310.0,2.54405447]
[1734186430867,0.1501925,101320.0,101310.0,2.18325447]
[1734186431068,0.1501925,101320.0,101310.0,2.54405447]
[1734186431372,0.08880811,101320.0,101310.0,2.54405447]
[1734186431572,0.1501925,101320.0,101310.0,2.54405447]
[1734186437877,0.1501925,101320.0,101310.0,2.18325447]
[1734186438085,0.1501925,101320.0,101310.0,2.54405447]
[1734186438289,0.08880811,101320.0,101310.0,2.54405447]
[1734186438578,0.08880811,101320.0,101310.0,2.8141429]
[1734186439181,0.08880811,101320.0,101310.0,2.54405447]
[1734186440382,0.08880811,101320.0,101310.0,2.60543886]
[1734186440675,0.08880811,101320.0,101310.0,2.63753886]
[1734186447490,0.20709955,101320.0,101310.0,2.63753886]
[1734186448385,0.08880811,101320.0,101310.0,2.63753886]
[1734186449278,0.08880811,101320.0,101310.0,2.90762729]
[1734186450684,0.08880811,101320.0,101310.0,2.8462429]
[1734186450899,0.08880811,101320.0,101310.0,2.90762729]
[1734186452085,0.08880811,101320.0,101310.0,2.9051233]
[1734186452885,0.08880811,101320.0,101310.0,2.84373891]
[1734186453199,0.1501925,101320.0,101310.0,2.84373891]
[1734186453377,0.1501925,101320.0,101310.0,1.34373891]
[1734186454387,0.26848394,101320.0,101310.0,1.07501212]
[1734186455192,0.09467397,101320.0,101310.0,1.37547388]
[1734186455390,0.09467397,101320.0,101310.0,1.34373891]
[1734186456578,0.09467397,101320.0,101310.0,1.35053618]
[1734186458184,0.21296541,101320.0,101310.0,1.35053618]
[1734186460982,0.21296541,101320.0,101310.0,1.35077351]
[1734186461397,0.21296541,101320.0,101310.0,1.4121579]
[1734186462291,0.21296541,101320.0,101310.0,2.9121579]
[1734186464285,0.21296541,101320.0,101310.0,2.85077351]
[1734186468488,0.21296541,101320.0,101310.0,1.31867351]
[1734186470097,0.21296541,101320.0,101310.0,1.31932163]
[1734186470894,0.21296541,101320.0,101310.0,0.96481312]
[1734186473503,0.15158102,101320.0,101310.0,0.96481312]
[1734186474590,0.15158102,101320.0,101310.0,2.46481312]
[1734186479005,0.15158102,101320.0,101310.0,2.46472265]
[1734186480208,0.15158102,101320.0,101310.0,2.48453155]
[1734186480406,0.15158102,101320.0,101310.0,2.839411]
[1734186480703,0.20092702,101320.0,101310.0,2.839411]
[1734186481813,0.26231141,101320.0,101310.0,2.839411]
[1734186486415,0.26231141,101320.0,101310.0,2.83961009]
[1734186490420,0.20092702,101320.0,101310.0,2.47881009]
[1734186490623,0.22902183,101320.0,101310.0,2.47881009]
[1734186490923,0.22902183,101320.0,101310.0,2.47872849]
[1734186491723,0.22902183,101320.0,101310.0,2.54011288]
[1734186492220,0.22902183,101320.0,101310.0,2.26719363]
[1734186495323,0.22902183,101320.0,101310.0,2.26663976]
[1734186496117,0.22902183,101320.0,101310.0,2.53889882]
[1734186497315,0.22902183,101320.0,101310.0,2.26663976]
[1734186500218,0.22902183,101320.0,101310.0,2.20525537]
[1734186506932,0.16763744,101320.0,101310.0,2.20525537]
[1734186508436,0.16763744,101320.0,101310.0,2.20534763]
[1734186509642,0.16763744,101320.0,101310.0,2.47771666]
[1734186514553,0.16763744,101320.0,101310.0,2.20534763]
[1734186517346,0.16763744,101320.0,101310.0,2.20522387]
[1734186518149,0.11829144,101320.0,101310.0,2.20522387]
[1734186519455,0.11829144,101320.0,101310.0,2.26660826]
[1734186520958,0.11829144,101320.0,101310.0,2.20522387]
[1734186521755,0.11829144,101320.0,101310.0,2.47769551]
[1734186526350,0.11829144,101320.0,101310.0,2.47781841]
[1734186529554,0.11829144,101320.0,101310.0,2.20539405]
[1734186530953,0.11829144,101320.0,101310.0,2.20537648]
[1734186537869,0.11829144,101320.0,101310.0,2.4777799]
[1734186538962,0.11829144,101320.0,101310.0,2.20537648]
[1734186542260,0.11829144,101320.0,101310.0,2.20536572]
[1734186542662,0.11829144,101320.0,101310.0,2.6889345]
[1734186542863,0.11842003,101330.0,101320.0,0.049346]
[1734186543167,0.17966431,101340.0,101330.0,0.049341]
[1734186543376,0.0318,101340.0,101330.0,0.69388238]
[1734186543675,0.0318,101340.0,101330.0,2.13450485]
[1734186544168,0.0313,101340.0,101330.0,2.13450485]
[1734186545161,0.0318,101340.0,101330.0,2.13450485]
[1734186546172,0.0313,101340.0,101330.0,2.13450485]
[1734186546866,0.0313,101340.0,101330.0,0.63450485]
[1734186547068,0.0318,101340.0,101330.0,0.63450485]
[1734186547568,0.0005,101340.0,101330.0,0.63450485]
[1734186548168,0.47299898,101350.0,101340.0,0.049336]
[1734186548366,0.41161459,101350.0,101340.0,0.46237966]
[1734186548563,0.47299898,101350.0,101340.0,0.46237966]
[1734186552067,0.36228059,101350.0,101340.0,0.52376405]
[1734186552264,0.17401139,101360.0,101340.0,0.34674534]
[1734186552573,0.17401139,101360.0,101350.0,0.22620758]
[1734186553268,0.53481139,101360.0,101350.0,0.22620758]
[1734186553669,0.473427,101360.0,101350.0,0.22620758]
[1734186553875,0.17401139,101360.0,101350.0,0.22620758]
[1734186554269,0.53481139,101360.0,101350.0,0.22620758]
[1734186555083,0.473427,101360.0,101350.0,0.22620758]
[1734186555380,0.53481139,101360.0,101350.0,0.22620758]
[1734186556471,0.53481139,101360.0,101350.0,0.23604311]
[1734186556979,0.4241,101360.0,101350.0,0.53345245]
[1734186557171,0.59669557,101370.0,101360.0,0.049326]
[1734186557370,0.59669557,101370.0,101360.0,0.11071039]
[1734186557874,0.410123,101370.0,101360.0,0.11071039]
[1734186558076,0.47150739,101370.0,101360.0,0.11071039]
[1734186558375,0.47150739,101370.0,101360.0,0.049326]
[1734186563279,0.049326,101360.0,101350.0,0.47206706]
[1734186563482,0.59559478,101360.0,101350.0,0.23604211]
[1734186563680,0.62759478,101360.0,101350.0,0.23604211]
[1734186564079,0.62809478,101360.0,101350.0,0.23604211]
[1734186564485,0.20591039,101360.0,101350.0,0.47206706]
[1734186564690,0.0952,101360.0,101350.0,0.53345145]
[1734186565187,0.0952,101360.0,101350.0,0.47206706]
[1734186565377,0.0632,101360.0,101350.0,0.35657487]
[1734186566377,0.0632,101360.0,101350.0,0.71737487]
[1734186566572,0.17391039,101360.0,101350.0,0.29519048]
[1734186567089,0.17341039,101360.0,101350.0,0.29519048]
[1734186570083,0.53421039,101360.0,101350.0,0.29519048]
[1734186570283,0.56481039,101360.0,101350.0,0.29519048]
[1734186572688,0.56481039,101360.0,101350.0,0.59055073]
[1734186572988,0.62619478,101360.0,101350.0,0.24586048]
[1734186573183,0.62619478,101360.0,101350.0,0.4228297]
[1734186573378,0.77405909,101360.0,101350.0,0.18680475]
[1734186576479,0.77405909,101360.0,101350.0,0.4228297]
[1734186579696,0.78365834,101360.0,101350.0,0.4228297]
[1734186581898,0.78365834,101360.0,101350.0,0.4721607]
[1734186587305,0.78365834,101360.0,101350.0,0.41299417]
[1734186587902,0.78365834,101360.0,101350.0,0.46232517]
[1734186588504,0.78365834,101360.0,101350.0,0.41299417]
[1734186591702,0.78365834,101360.0,101350.0,0.17696922]
[1734186591904,1.24769551,101360.0,101350.0,0.17696922]
[1734186592405,1.12492673,101360.0,101350.0,0.17696922]
[1734186592708,1.24769551,101360.0,101350.0,0.17696922]
[1734186592906,1.07025834,101360.0,101350.0,0.17696922]
[1734186593106,1.07025834,101360.0,101350.0,0.41299417]
[1734186593409,1.03965834,101360.0,101350.0,0.46232517]
[1734186594098,1.03965834,101360.0,101350.0,0.41299417]
[1734186594502,1.21709551,101360.0,101350.0,0.17696922]
[1734186594911,0.93049551,101360.0,101350.0,0.17696922]
[1734186596412,0.93049551,101360.0,101350.0,0.41299417]
[1734186599507,0.7826312,101360.0,101350.0,0.41299417]
[1734186599709,0.7826312,101360.0,101350.0,0.17696922]
[1734186600511,0.7826312,101360.0,101350.0,0.41299417]
[1734186600913,1.0692312,101360.0,101350.0,0.41299417]
[1734186605915,1.0692312,101360.0,101350.0,0.17696922]
[1734186606121,0.89179403,101360.0,101350.0,0.17696922]
[1734186606513,1.0693254,101360.0,101350.0,0.17696922]
[1734186606819,0.89179403,101360.0,101350.0,0.17696922]
[1734186607215,1.06932677,101360.0,101350.0,0.17696922]
[1734186608825,0.89179403,101360.0,101340.0,0.42314427]
[1734186609020,0.79690584,101350.0,101340.0,0.42314427]
[1734186609318,0.73552145,101350.0,101340.0,0.42264427]
[1734186609520,0.73552145,101350.0,101340.0,0.24567505]
[1734186609521,0.61942014,101350.0,101340.0,0.24567505]
[1734186609818,0.61942014,101350.0,101340.0,0.64751204]
[1734186610023,0.61942014,101350.0,101340.0,0.6043353]
[1734186610215,0.61942014,101350.0,101340.0,0.6048353]
[1734186610921,0.67633352,101350.0,101340.0,0.94588401]
[1734186611123,0.73771791,101350.0,101340.0,0.70985906]
[1734186611317,0.58981316,101350.0,101340.0,0.70985906]
[1734186611621,0.58981316,101350.0,101340.0,2.20985906]
[1734186612816,0.58981316,101350.0,101340.0,2.20982908]
[1734186613213,0.58981316,101350.0,101340.0,2.20932908]
[1734186615223,0.73771791,101350.0,101340.0,2.14794469]
[1734186615524,0.58981316,101350.0,101340.0,2.14794469]
[1734186616219,0.73771791,101350.0,101340.0,2.14794469]
[1734186616419,0.58981316,101350.0,101340.0,2.14794469]
[1734186617113,0.58981316,101350.0,101340.0,2.09860869]
[1734186617316,0.73771791,101350.0,101340.0,2.09860869]
[1734186617615,0.73771791,101350.0,101340.0,0.59860869]
[1734186623527,0.73771791,101350.0,101340.0,0.64794469]
[1734186623928,0.58981316,101350.0,101340.0,0.64794469]
[1734186627237,0.73771791,101350.0,101340.0,0.64794469]
[1734186627427,0.58981316,101350.0,101340.0,0.64794469]
[1734186628730,0.73771791,101350.0,101340.0,0.64794469]
[1734186630036,0.58981316,101350.0,101340.0,0.64794469]
[1734186630226,0.73771791,101350.0,101340.0,0.64794469]
[1734186634237,0.73771791,101350.0,101340.0,0.61494469]
[1734186634535,0.73771791,101350.0,101340.0,0.61541733]
[1734186634732,0.61942014,101350.0,101340.0,0.62105157]
[1734186634929,0.61942014,101350.0,101340.0,0.66422726]
[1734186635123,0.61942014,101350.0,101340.0,0.36886701]
[1734186636930,0.61942014,101350.0,101340.0,0.32569132]
[1734186638240,0.61942014,101350.0,101340.0,0.59075157]
[1734186638439,0.61942014,101350.0,101340.0,0.29539132]
[1734186639341,0.61942014,101350.0,101340.0,0.59075157]
[1734186639942,1.04160453,101350.0,101340.0,0.23640522]
[1734186640144,1.10328548,101350.0,101340.0,0.4137453]
[1734186640326,1.10328548,101350.0,101340.0,0.17734008]
[1734186642534,1.38988548,101350.0,101340.0,0.17734008]
[1734186643036,1.38988548,101350.0,101330.0,0.4142453]
[1734186643037,0.335936,101340.0,101330.0,0.4142453]
[1734186643238,1.05829048,101340.0,101330.0,0.17723802]
[1734186643439,0.049341,101330.0,101320.0,0.17723802]
[1734186643640,0.82837187,101330.0,101320.0,0.17723802]
[1734186644128,0.6509647,101330.0,101320.0,0.17723802]
[1734186644336,0.71234909,101330.0,101320.0,0.17723802]
[1734186644534,1.17635626,101330.0,101310.0,1.91522269]
[1734186644831,0.86025503,101320.0,101310.0,1.91522269]
[1734186645231,0.86025503,101320.0,101310.0,0.41374235]
[1734186645446,0.71241572,101320.0,101310.0,0.17733713]
[1734186645635,0.71241572,101320.0,101310.0,1.68725438]
[1734186646237,0.80097612,101320.0,101310.0,1.68725438]
[1734186646744,0.52834694,101320.0,101310.0,1.79798977]
[1734186646951,0.67829118,101320.0,101310.0,1.79798977]
[1734186647245,0.67829118,101320.0,101310.0,1.79900538]
[1734186647641,0.56009024,101320.0,101310.0,1.85817258]
[1734186648341,0.62147463,101320.0,101310.0,2.03506889]
[1734186649435,0.53291478,101320.0,101310.0,1.79866367]
[1734186649640,0.53291478,101320.0,101310.0,1.8418529]
[1734186649847,0.53291478,101320.0,101310.0,2.07825812]
[1734186650344,0.53291478,101320.0,101310.0,1.8423529]
[1734186653140,0.62147463,101320.0,101310.0,1.79916367]
[1734186657750,0.53291478,101320.0,101310.0,1.79916367]
[1734186658646,0.47153039,101320.0,101310.0,1.79916367]
[1734186659343,0.56009024,101320.0,101310.0,1.79916367]
[1734186660357,0.62147463,101320.0,101310.0,1.79916367]
[1734186660645,0.56009024,101320.0,101310.0,1.79916367]
[1734186661046,0.56009024,101320.0,101310.0,2.03556889]
[1734186661246,0.56009024,101320.0,101310.0,2.03506889]
[1734186661647,0.49870585,101320.0,101310.0,2.03506889]
[1734186661849,0.049346,101320.0,101310.0,2.13963888]
[1734186662052,0.51074424,101330.0,101310.0,2.32354257]
[1734186662251,0.56008724,101330.0,101320.0,0.25630096]
[1734186662452,0.56008724,101330.0,101320.0,0.36087095]
[1734186662653,0.44935985,101330.0,101320.0,0.36087095]
[1734186662846,0.08855985,101330.0,101320.0,0.97627496]
[1734186663046,0.08855985,101330.0,101320.0,0.79952]
[1734186663247,0.60408418,101340.0,101330.0,0.049341]
[1734186663550,0.42449885,101340.0,101330.0,0.94539952]
[1734186663751,0.42449885,101340.0,101330.0,0.98857445]
[1734186664153,0.13789885,101340.0,101330.0,2.48857445]
[1734186664457,0.049339,101340.0,101330.0,1.95100554]
[1734186664768,0.049339,101340.0,101330.0,2.31180554]
[1734186665261,0.11072339,101340.0,101330.0,2.26863061]
[1734186665452,0.11072339,101340.0,101330.0,2.25042086]
[1734186668564,0.11072339,101340.0,101330.0,2.31180525]
[1734186669561,0.11072339,101340.0,101330.0,2.32175163]
[1734186673158,0.77128115,101350.0,101340.0,0.049336]
[1734186673358,0.77078115,101350.0,101340.0,0.2259863]
[1734186673758,0.77078115,101350.0,101340.0,0.2562863]
[1734186674262,0.77128115,101350.0,101340.0,0.2562863]
[1734186674452,0.65308021,101350.0,101340.0,0.2562863]
[1734186675258,0.049336,101340.0,101330.0,2.07621654]
[1734186675453,0.47152039,101340.0,101330.0,2.07621654]
[1734186676058,0.47152039,101340.0,101330.0,2.04571654]
[1734186676266,0.11072039,101340.0,101330.0,2.01551654]
[1734186679777,0.53290478,101340.0,101330.0,1.96621969]
[1734186679967,0.68406463,101340.0,101330.0,1.68663983]
[1734186680268,0.68406463,101340.0,101330.0,1.72981447]
[1734186681466,0.80226557,101340.0,101330.0,1.68663983]
[1734186681669,0.74088118,101340.0,101330.0,1.68663983]
[1734186683368,0.74088118,101340.0,101330.0,1.92304505]
[1734186683568,0.80226557,101340.0,101330.0,1.68663983]
[1734186683767,0.80226557,101340.0,101330.0,1.72981812]
[1734186684276,0.80226557,101340.0,101330.0,1.68663983]
[1734186685265,0.80226557,101340.0,101330.0,1.92304505]
[1734186685565,0.80226557,101340.0,101330.0,2.01556449]
[1734186685765,0.80226557,101340.0,101330.0,1.97238605]
[1734186686173,0.80226557,101340.0,101330.0,0.17669345]
[1734186686373,0.80226557,101340.0,101330.0,0.21987192]
[1734186686567,0.71370572,101340.0,101330.0,0.21987192]
[1734186687077,0.86154503,101340.0,101330.0,0.17669345]
[1734186687276,0.71370572,101340.0,101330.0,0.17669345]
[1734186687461,0.71370572,101340.0,101320.0,1.96244267]
[1734186687462,0.049341,101330.0,101320.0,1.96244267]
[1734186687768,0.55981037,101330.0,101320.0,2.00562165]
[1734186687966,0.62119476,101330.0,101320.0,2.00562165]
[1734186689063,0.68257915,101330.0,101320.0,1.95627765]
[1734186689380,0.62119476,101330.0,101320.0,1.95627765]
[1734186690079,0.62119476,101330.0,101320.0,0.45627765]
[1734186690269,0.68257915,101330.0,101320.0,0.45627765]
[1734186690480,0.62119476,101330.0,101320.0,0.45627765]
[1734186691472,0.76903407,101330.0,101320.0,0.41309867]
[1734186691774,0.76903407,101330.0,101320.0,0.17669345]
[1734186691775,0.83041846,101330.0,101320.0,0.17669345]
[1734186691983,0.83041846,101330.0,101320.0,0.21987776]
[1734186693679,0.76903407,101330.0,101320.0,0.21987776]
[1734186694796,0.62119476,101330.0,101320.0,0.17669345]
[1734186696278,0.76903407,101330.0,101320.0,0.17669345]
[1734186696485,0.62119476,101330.0,101320.0,0.21987861]
[1734186696871,0.96917915,101330.0,101320.0,0.17669345]
[1734186697071,0.99884909,101330.0,101310.0,1.92333809]
[1734186697274,0.71616338,101320.0,101310.0,1.92283809]
[1734186697477,0.80476185,101320.0,101310.0,1.68643287]
[1734186697681,0.80476185,101320.0,101310.0,1.9660265]
[1734186698288,0.80476185,101320.0,101310.0,1.9665265]
[1734186698487,0.80476185,101320.0,101310.0,1.73012128]
[1734186699381,0.80474313,101320.0,101310.0,1.68643287]
[1734186700289,0.80474313,101320.0,101310.0,1.92333809]
[1734186700479,0.80474313,101320.0,101310.0,1.68693287]
[1734186701283,0.80474313,101320.0,101310.0,0.41319778]
[1734186701682,0.80474313,101320.0,101310.0,0.17679256]
[1734186702275,0.80474313,101320.0,101310.0,0.17729256]
[1734186704383,0.80474313,101320.0,101310.0,0.17679256]
[1734186704578,0.71075874,101320.0,101310.0,0.17679256]
[1734186704790,0.67825874,101320.0,101310.0,0.46254878]
[1734186705089,0.56011014,101320.0,101310.0,0.49404878]
[1734186705585,0.62149453,101320.0,101310.0,0.49404878]
[1734186706483,0.73964313,101320.0,101310.0,0.49404878]
[1734186706679,0.20672835,101320.0,101310.0,0.55543317]
[1734186706880,0.20672835,101330.0,101310.0,1.07271489]
[1734186707085,0.14996414,101330.0,101320.0,0.40912509]
[1734186707287,0.08857975,101330.0,101320.0,1.95230477]
[1734186707477,0.08857975,101330.0,101320.0,2.43632595]
[1734186707685,0.08857975,101330.0,101320.0,1.90912509]
[1734186707891,0.08857975,101330.0,101320.0,1.952305]
[1734186708384,0.08857975,101330.0,101320.0,2.24766525]
[1734186708581,0.08857975,101330.0,101320.0,2.47922153]
[1734186709994,0.08857975,101330.0,101320.0,2.24352683]
[1734186710191,0.08857975,101330.0,101320.0,2.47938157]
[1734186712488,0.08857975,101330.0,101320.0,2.2535404]
[1734186715188,0.13792075,101330.0,101320.0,2.2535404]
[1734186715388,0.19930514,101330.0,101320.0,2.2535404]
[1734186718596,0.19930514,101330.0,101320.0,2.19215601]
[1734186719785,0.19930514,101330.0,101320.0,2.21157519]
[1734186720190,0.56010514,101330.0,101320.0,2.21157519]
[1734186720391,0.56010514,101330.0,101320.0,2.19215601]
[1734186720698,0.56010514,101330.0,101320.0,2.42803358]
[1734186720992,0.67825374,101330.0,101320.0,1.90111705]
[1734186721198,0.67825374,101330.0,101320.0,1.85793714]
[1734186721589,0.56010514,101330.0,101320.0,1.85793714]
[1734186722001,0.56010514,101330.0,101320.0,1.91932153]
[1734186722199,0.56010514,101330.0,101320.0,2.25786295]
[1734186722801,0.56010514,101330.0,101320.0,2.48918002]
[1734186723003,0.49872075,101330.0,101320.0,2.48898119]
[1734186723802,0.49872075,101330.0,101320.0,2.25786295]
[1734186724396,0.49872075,101330.0,101320.0,2.19647856]
[1734186725490,0.49872075,101330.0,101320.0,2.42760913]
[1734186725998,0.49872075,101330.0,101320.0,2.19647856]
[1734186727504,0.49872075,101330.0,101320.0,2.4276869]
[1734186728401,0.13792075,101330.0,101320.0,2.4276869]
[1734186728601,0.49872075,101330.0,101320.0,2.4276869]
[1734186729504,0.56010514,101330.0,101320.0,2.4276869]
[1734186730708,0.19930514,101330.0,101320.0,2.4276869]
[1734186730903,0.56010514,101330.0,101320.0,2.4276869]
[1734186731507,0.56010514,101330.0,101320.0,2.1920828]
[1734186732407,0.67825374,101330.0,101320.0,2.1293828]
[1734186734612,0.58967399,101330.0,101320.0,2.1293828]
[1734186736608,0.6193647,101330.0,101320.0,2.1293828]
[1734186740103,0.62936684,101330.0,101320.0,2.12956706]
[1734186741403,0.62936684,101330.0,101320.0,2.36589029]
[1734186742004,0.62936684,101330.0,101320.0,2.31654429]
[1734186742404,0.74771445,101330.0,101320.0,2.31654429]
[1734186744408,0.74771445,101330.0,101320.0,2.31665733]
[1734186746312,0.74770702,101330.0,101320.0,2.31665733]
[1734186746614,0.62936684,101330.0,101320.0,2.03715293]
[1734186747309,0.62936684,101330.0,101320.0,0.53715293]
[1734186748612,0.62936684,101330.0,101320.0,0.2465117]
[1734186753122,0.99016684,101330.0,101320.0,0.23649813]
[1734186753516,0.99016684,101330.0,101320.0,0.41392304]
[1734186754021,1.08111909,101330.0,101320.0,0.41392304]
[1734186754318,1.22902262,101330.0,101320.0,0.41392304]
[1734186754620,1.05161545,101330.0,101320.0,0.41392304]
[1734186754823,0.99023106,101330.0,101320.0,0.41392304]
[1734186755320,0.99023106,101330.0,101320.0,0.23649813]
[1734186756409,0.99023106,101330.0,101320.0,0.4139]
[1734186760218,1.05161545,101330.0,101320.0,0.4139]
[1734186760419,1.22902262,101330.0,101320.0,0.4139]
[1734186760720,1.22902262,101330.0,101320.0,0.17740187]
[1734186761722,1.22902262,101330.0,101320.0,0.22058877]
[1734186762617,1.22902262,101330.0,101320.0,0.17740187]
[1734186764409,1.22902262,101330.0,101320.0,0.4139]
[1734186766314,1.08111909,101330.0,101320.0,0.4139]
[1734186767315,1.22902004,101330.0,101320.0,0.4139]
[1734186770027,1.05161287,101330.0,101320.0,0.4139]
[1734186772524,1.22902004,101330.0,101320.0,0.4139]
[1734186772732,1.16763565,101330.0,101320.0,0.4139]
[1734186775427,0.55807288,101330.0,101320.0,0.40861291]
[1734186775626,0.55807288,101330.0,101320.0,0.74528602]
[1734186775627,0.67641118,101330.0,101320.0,0.74528602]
[1734186775927,0.67641118,101330.0,101320.0,0.77698602]
[1734186775928,0.58986369,101330.0,101320.0,0.77698602]
[1734186779529,0.58986369,101330.0,101320.0,0.73379913]
[1734186780037,0.22906369,101330.0,101320.0,0.73339994]
[1734186780233,0.58986369,101330.0,101320.0,0.73339994]
[1734186781329,0.58986369,101330.0,101320.0,0.67201555]
[1734186782329,0.5284793,101330.0,101320.0,0.79478433]
[1734186782525,0.5284793,101330.0,101320.0,0.73339994]
[1734186782741,0.5284793,101330.0,101320.0,2.23339994]
[1734186783038,0.5284793,101330.0,101320.0,2.00199064]
[1734186783240,0.5284793,101330.0,101320.0,2.23318424]
[1734186783939,0.5284793,101330.0,101320.0,0.73318424]
[1734186785436,0.61716435,101330.0,101320.0,0.73318424]
[1734186786339,0.61716435,101330.0,101320.0,1.01241339]
[1734186787434,0.61716435,101330.0,101320.0,1.24282702]
[1734186787628,0.61716435,101330.0,101320.0,1.01163342]
[1734186790735,0.56782335,101330.0,101320.0,1.01163342]
[1734186794837,0.62920774,101330.0,101320.0,1.01163342]
[1734186796635,0.56782335,101330.0,101320.0,1.01163342]
[1734186796939,0.62920774,101330.0,101320.0,1.01163342]
[1734186797133,0.56782335,101330.0,101320.0,1.01163342]
[1734186797337,0.62920774,101330.0,101320.0,1.01163342]
[1734186798334,0.62920774,101330.0,101320.0,0.77558528]
[1734186799047,0.62920774,101330.0,101320.0,0.79565457]
[1734186800742,0.56782335,101330.0,101320.0,0.79565457]
[1734186803352,0.4791383,101330.0,101320.0,0.79565457]
[1734186803648,0.54052269,101330.0,101320.0,0.79565457]
[1734186803849,0.4791383,101330.0,101320.0,0.76395457]
[1734186804049,0.54052269,101330.0,101320.0,0.76395457]
[1734186804249,0.4791383,101330.0,101320.0,0.76395457]
[1734186804551,0.54052269,101330.0,101320.0,0.76395457]
[1734186805449,0.68845457,101330.0,101320.0,1.11869235]
[1734186806050,0.62707018,101330.0,101320.0,1.11869235]
[1734186806250,0.62707018,101330.0,101320.0,1.05730796]
[1734186806444,0.68845457,101330.0,101320.0,0.99310796]
[1734186812741,0.68845457,101330.0,101320.0,1.05449235]
[1734186814249,0.62707018,101330.0,101320.0,1.05449235]
[1734186814454,0.62707018,101330.0,101320.0,1.05414841]
[1734186815355,0.68845457,101330.0,101320.0,0.9927643]
[1734186817349,0.62707018,101330.0,101320.0,0.9927643]
[1734186818057,0.26627018,101330.0,101320.0,0.9927643]
[1734186818257,0.62707018,101330.0,101320.0,0.9927643]
[1734186818961,0.68845457,101330.0,101320.0,0.9927643]
[1734186819360,0.73779557,101330.0,101320.0,0.9927643]
[1734186822255,0.67641118,101330.0,101320.0,0.9927643]
[1734186823560,0.73779557,101330.0,101320.0,0.99285825]
[1734186823761,0.37699557,101330.0,101320.0,0.99285825]
[1734186823964,0.61945727,101330.0,101320.0,0.97278896]
[1734186824465,0.61945727,101330.0,101320.0,0.61805118]
[1734186827161,0.61945727,101330.0,101320.0,0.56870518]
[1734186827958,0.61945727,101330.0,101320.0,0.56881799]